bitfinex/quotes_SOLUSD_20211001
["timestamp","ask_amount","ask_price","bid_price","bid_amount"]
[1633128027746,0.04088,157.59,157.46,60.49144962]
[1633128028144,0.04088,157.59,157.46,31.6693]
[1633128030750,2.03,157.58,157.46,31.6693]
[1633128030947,26.53992245,157.57,157.43,73.949]
[1633128031149,2.03,157.56,157.43,73.949]
[1633128031349,0.04088,157.55,157.43,73.949]
[1633128031556,2.07088,157.54,157.43,73.949]
[1633128031749,8.40034925,157.5,157.43,73.949]
[1633128031949,23.54634173,157.49,157.43,73.949]
[1633128032149,23.54634173,157.49,157.4,191.2244]
[1633128032350,22.91194173,157.49,157.36,28.82214962]
[1633128033169,33.9432402,157.31,157.3,19.61124777]
[1633128033354,33.9432402,157.31,157.29,103.33843851]
[1633128033550,0.04088,157.34,157.29,75.5274]
[1633128033758,8.44710548,157.39,157.29,75.5274]
[1633128033954,0.04088,157.38,157.29,75.5274]
[1633128034150,7.77182548,157.39,157.29,75.5274]
[1633128034351,2.92556152,157.38,157.29,75.5274]
[1633128034556,0.04088,157.37,157.29,27.75086276]
[1633128034752,2.07088,157.37,157.29,27.75086276]
[1633128034953,0.04088,157.37,157.29,27.75086276]
[1633128035152,0.04088,157.41,157.29,27.75086276]
[1633128035754,2.03,157.4,157.23,77.9975]
[1633128035953,0.04088,157.39,157.21,78.7915]
[1633128036170,2.03,157.38,157.21,78.7915]
[1633128036351,0.04088,157.37,157.21,78.7915]
[1633128036753,0.04088,157.37,157.22,25.92570809]
[1633128038955,0.04088,157.37,157.22,43.30070809]
[1633128039958,2.03,157.36,157.22,25.92570809]
[1633128040157,0.04088,157.35,157.22,25.92570809]
[1633128041959,8.40943417,157.33,157.22,25.92570809]
[1633128042178,0.04088,157.32,157.22,25.92570809]
[1633128042561,0.04088,157.35,157.22,25.92570809]
[1633128043362,2.03,157.35,157.22,25.92570809]
[1633128043568,2.07088,157.35,157.22,25.92570809]
[1633128043763,8.40943417,157.33,157.22,25.92570809]
[1633128043966,2.07088,157.32,157.22,25.92570809]
[1633128045765,8.41103943,157.3,157.22,25.92570809]
[1633128045966,0.04088,157.29,157.22,25.92570809]
[1633128046767,0.02088,157.36,157.22,25.92570809]
[1633128046969,2.05088,157.39,157.22,50.83642497]
[1633128047567,2.03,157.39,157.23,61.85088]
[1633128047966,2.03,157.39,157.24,24.91071688]
[1633128048166,2.03,157.39,157.25,24.7110541]
[1633128048774,8.40355345,157.44,157.27,96.0]
[1633128048968,2.03,157.43,157.28,61.83]
[1633128049572,10.67299106,157.47,157.29,96.0]
[1633128049769,8.64299106,157.47,157.31,15.872]
[1633128049969,2.05088,157.49,157.31,15.872]
[1633128050268,2.03,157.49,157.31,57.58906122]
[1633128050468,2.03,157.49,157.32,136.2106]
[1633128050670,0.0001,157.49,157.36,15.8667]
[1633128050871,0.0001,157.49,157.36,33.0687]
[1633128051075,8.94331326,157.55,157.37,25.68894766]
[1633128051272,8.94331326,157.55,157.38,116.4733]
[1633128051273,1.326e-05,157.55,157.38,116.4733]
[1633128051473,2.03,157.56,157.38,116.4733]
[1633128051671,0.02088,157.59,157.39,96.0]
[1633128051872,2.03,157.64,157.41,14.57941542]
[1633128052072,2.03,157.64,157.43,11.85967843]
[1633128052270,2.03,157.69,157.44,63.8804176]
[1633128052470,2.03,157.69,157.46,12.25069209]
[1633128052672,2.03,157.69,157.47,0.0204176]
[1633128052673,2.78212861,157.68,157.47,0.0204176]
[1633128052871,2.05088,157.67,157.47,15.49844353]
[1633128053473,2.03,157.67,157.48,141.2917176]
[1633128053672,2.03,157.67,157.51,15.8515]
[1633128053875,2.03,157.67,157.51,39.7435]
[1633128054071,2.03,157.67,157.52,109.8272]
[1633128054288,2.03,157.69,157.53,22.16939402]
[1633128055489,2.03,157.69,157.54,111.3713]
[1633128055895,2.03,157.69,157.53,22.16939402]
[1633128056093,0.02088,157.68,157.53,22.16939402]
[1633128056291,2.03,157.67,157.53,22.16939402]
[1633128056690,2.03,157.67,157.54,74.3997]
[1633128056895,2.03,157.67,157.53,22.16939402]
[1633128060893,4.60796829,157.67,157.53,22.16939402]
[1633128061092,2.03,157.67,157.53,22.16939402]
[1633128061292,2.03,157.67,157.53,21.66939402]
[1633128065498,2.03,157.67,157.53,49.34188867]
[1633128066503,1.53,157.67,157.53,49.34188867]
[1633128067100,2.77591529,157.66,157.53,21.66939402]
[1633128067300,2.03,157.65,157.49,117.2336]
[1633128067499,0.02088,157.64,157.49,117.2336]
[1633128067700,2.03,157.63,157.48,79.8007]
[1633128067901,2.03,157.63,157.41,7.1953776]
[1633128068100,10.42341518,157.63,157.41,27.69291225]
[1633128068299,10.42341518,157.63,157.42,25.17094653]
[1633128068700,10.42341518,157.63,157.42,52.84344118]
[1633128069300,10.42341518,157.63,157.42,130.17188471]
[1633128069502,10.42341518,157.63,157.43,0.0204176]
[1633128069699,10.42341518,157.63,157.45,15.8577]
[1633128069899,10.42341518,157.63,157.46,28.14465016]
[1633128072107,8.39714749,157.56,157.46,28.14465016]
[1633128072305,18.82429498,157.56,157.46,28.14465016]
[1633128073103,2.03,157.56,157.46,28.14465016]
[1633128074503,2.03,157.56,157.41,0.0204176]
[1633128074905,2.03,157.56,157.39,543.19614656]
[1633128075508,2.03,157.56,157.4,26.15897266]
[1633128075707,2.03,157.56,157.41,61.83]
[1633128075909,2.03,157.56,157.42,5.20884555]
[1633128076106,2.03,157.56,157.43,25.83337223]
[1633128076308,2.03,157.56,157.43,53.50586688]
[1633128077310,8.39501434,157.6,157.43,53.50586688]
[1633128077507,2.16,157.59,157.43,53.50586688]
[1633128077908,2.18088,157.59,157.43,53.50586688]
[1633128079007,8.39714749,157.56,157.43,25.83337223]
[1633128079209,2.16,157.55,157.43,25.83337223]
[1633128079408,2.16,157.55,157.39,526.90325859]
[1633128079610,2.16,157.55,157.4,5.21152896]
[1633128080409,2.16,157.55,157.41,26.99919072]
[1633128080810,2.16,157.55,157.41,41.88219072]
[1633128081408,8.39874806,157.53,157.41,41.88219072]
[1633128081608,2.16,157.52,157.41,41.88219072]
[1633128082415,1.66,157.52,157.41,41.88219072]
[1633128085613,1.66,157.52,157.42,5.2106285]
[1633128086012,1.66,157.52,157.41,41.88219072]
[1633128089219,1.66,157.52,157.41,40.88219072]
[1633128091123,1.66,157.52,157.42,5.21049617]
[1633128096831,8.39714749,157.56,157.53,0.09254162]
[1633128097031,2.16,157.55,157.53,14.386]
[1633128097235,2.16,157.54,157.53,14.386]
[1633128098030,2.16,157.57,157.53,14.386]
[1633128098234,2.16,157.57,157.45,9.38748342]
[1633128098435,2.16,157.57,157.45,5.71112963]
[1633128099030,2.16,157.57,157.46,29.30492959]
[1633128099231,2.16,157.57,157.47,5.6915575]
[1633128102630,2.16,157.57,157.47,5.1915575]
[1633128103832,2.16,157.57,157.43,435.3223819]
[1633128104633,2.16,157.57,157.44,28.88564458]
[1633128107138,2.16,157.57,157.42,16.29288797]
[1633128107338,2.16,157.57,157.39,5.53932724]
[1633128107538,2.16,157.57,157.4,5.51900816]
[1633128108137,8.39874806,157.53,157.41,26.02218395]
[1633128108338,1.66,157.52,157.41,26.02218395]
[1633128108538,1.66,157.52,157.41,31.54072159]
[1633128109539,1.66,157.52,157.4,5.51880124]
[1633128109739,1.66,157.52,157.35,5.52037877]
[1633128110139,8.40195104,157.47,157.35,5.52037877]
[1633128110341,2.16,157.46,157.32,5.51982836]
[1633128110544,2.16,157.46,157.33,26.10818415]
[1633128111742,2.16,157.46,157.3,5.51898104]
[1633128112141,8.40569094,157.4,157.28,5.5194925]
[1633128112340,8.64518945,157.43,157.28,5.5194925]
[1633128112341,2.16,157.39,157.28,15.40343475]
[1633128112542,2.16,157.38,157.28,15.40343475]
[1633128112739,2.16,157.38,157.29,25.26610293]
[1633128117041,2.16,157.38,157.29,25.28652053]
[1633128117640,2.16,157.38,157.29,30.80194786]
[1633128118641,2.16,157.38,157.29,25.28652053]
[1633128119840,2.16,157.38,157.29,25.26610293]
[1633128123454,2.16,157.38,157.26,3.69746256]
[1633128123653,2.16,157.38,157.25,3.67745613]
[1633128123654,24.461,157.38,157.25,3.67745613]
[1633128124047,24.461,157.38,157.24,3.67707641]
[1633128124248,24.461,157.38,157.23,3.67735916]
[1633128124449,24.461,157.38,157.22,3.67755781]
[1633128124648,78.391,157.38,157.21,78.29561774]
[1633128124849,8.41264531,157.27,157.21,74.6179]
[1633128125051,10.57264531,157.27,157.21,78.29567141]
[1633128125248,15.8918,157.42,157.21,78.29567141]
[1633128125249,2.16,157.31,157.21,78.29567141]
[1633128125449,2.16,157.31,157.21,73.1179]
[1633128125648,2.16,157.31,157.22,3.67752546]
[1633128125848,2.16,157.31,157.23,22.02097956]
[1633128126649,2.16,157.31,157.23,37.87301595]
[1633128127048,2.16,157.31,157.23,41.54923269]
[1633128127249,2.16,157.31,157.24,3.6761601]
[1633128127449,2.16,157.31,157.23,37.87301595]
[1633128127852,2.16,157.31,157.23,15.85203639]
[1633128128054,12.74843979,157.22,157.21,73.1383176]
[1633128128252,3.43057344,157.22,157.21,73.1383176]
[1633128128454,10.67102224,157.21,157.19,431.71784597]
[1633128128654,8.40729477,157.37,157.19,279.4421536]
[1633128128655,2.16,157.24,157.19,279.4421536]
[1633128128852,8.65730064,157.21,157.19,271.02468698]
[1633128129053,2.16,157.2,157.19,271.02468698]
[1633128129250,2.16,157.2,157.13,19.59932414]
[1633128129850,2.18088,157.2,157.13,19.59932414]
[1633128130251,2.18088,157.2,157.14,24.57600098]
[1633128130651,2.16,157.2,157.14,46.64600098]
[1633128130851,8.67487423,157.27,157.14,46.64600098]
[1633128131052,2.16,157.26,157.14,24.57600098]
[1633128131257,1.66,157.26,157.14,24.57600098]
[1633128132452,0.02088,157.25,157.14,24.57600098]
[1633128132653,2.16,157.24,157.14,24.57600098]
[1633128132854,2.18088,157.24,157.13,19.59932414]
[1633128133655,2.16,157.24,157.13,19.59932414]
[1633128134255,8.41478743,157.23,157.13,19.59932414]
[1633128134455,2.16,157.22,157.13,19.59932414]
[1633128135858,2.16,157.22,157.14,21.63578675]
[1633128136058,2.16,157.22,157.13,19.59932414]
[1633128136256,0.02088,157.21,157.13,19.59932414]
[1633128136460,2.16,157.2,157.13,19.59932414]
[1633128136856,8.6589548,157.18,157.13,19.59932414]
[1633128137056,2.16,157.17,157.13,19.59932414]
[1633128137457,0.02088,157.16,157.13,19.59932414]
[1633128137658,2.16,157.15,157.13,19.59932414]
[1633128138459,2.18088,157.15,157.13,19.59932414]
[1633128139260,2.18088,157.15,157.13,0.00932414]
[1633128139459,133.93,157.14,157.0,46.0]
[1633128139660,2.16,157.13,157.11,2815.57]
[1633128139859,2.16,157.12,157.11,2747.22571326]
[1633128140062,2.18088,157.12,157.11,2747.22571326]
[1633128140262,32.52896111,157.12,157.11,2693.29571326]
[1633128140660,2.16,157.12,157.11,2681.04925326]
[1633128140859,2.16,157.12,157.11,2616.17827165]
[1633128141663,2.16,157.12,157.11,2643.37292002]
[1633128142061,56.09,157.12,157.11,2643.37292002]
[1633128142661,56.09,157.12,157.11,2616.17827165]
[1633128143662,2.16,157.12,157.11,2616.17827165]
[1633128146664,56.09,157.12,157.11,2561.83327165]
[1633128147665,56.09,157.12,157.11,2494.76057165]
[1633128147965,77.901,157.12,157.11,2437.81347165]
[1633128148569,391.56587999,157.12,157.11,2437.81347165]
[1633128148767,391.56587999,157.12,157.11,2346.77477165]
[1633128149768,391.56587999,157.12,157.11,2298.99337165]
[1633128149971,398.74425999,157.12,157.11,2298.99337165]
[1633128150769,391.56587999,157.12,157.11,2251.22017165]
[1633128151568,391.56587999,157.12,157.11,2188.69517165]
[1633128151773,391.56587999,157.12,157.11,2140.90437165]
[1633128152569,391.56587999,157.12,157.11,2086.97437165]
[1633128152769,391.56587999,157.12,157.11,2039.19547165]
[1633128153568,391.56587999,157.12,157.11,2062.28494749]
[1633128153775,157.53258256,157.12,157.11,2014.51804749]
[1633128154371,2.16,157.12,157.11,2014.51804749]
[1633128154573,0.8871,157.12,157.11,2014.51804749]
[1633128154971,0.0071,157.12,157.11,2014.51804749]
[1633128155374,2.16,157.12,157.11,2014.51804749]
[1633128155572,2.16,157.12,157.11,2014.55980749]
[1633128155775,2.11824,157.12,157.11,2014.53892749]
[1633128156173,2.11824,157.12,157.11,2014.51804749]
[1633128156773,4e-05,157.12,157.11,2014.51804749]
[1633128156973,4e-05,157.12,157.11,1991.42857165]
[1633128157574,4e-05,157.12,157.11,1991.44945165]
[1633128158378,4e-05,157.12,157.11,1991.42857165]
[1633128160178,53.93004,157.12,157.11,1991.42857165]
[1633128160579,53.93004,157.12,157.11,1943.66137165]
[1633128162982,53.93004,157.12,157.11,1892.89177165]
[1633128163183,68.53804,157.12,157.11,1892.89177165]
[1633128163585,53.93004,157.12,157.11,1892.89177165]
[1633128164183,8.19582809,157.12,157.11,1887.89177165]
[1633128164384,0.02088,157.26,157.11,1887.89177165]
[1633128164585,2.16,157.25,157.11,1887.89177165]
[1633128164785,2.16,157.24,157.11,1887.89177165]
[1633128165590,26.014,157.24,157.11,1887.89177165]
[1633128165785,15.9144,157.21,157.11,1887.89177165]
[1633128165985,2.18088,157.2,157.11,1887.89177165]
[1633128166187,0.02088,157.19,157.11,1887.89177165]
[1633128166384,2.16,157.18,157.11,1887.89177165]
[1633128166586,0.02088,157.17,157.11,1887.89177165]
[1633128166784,29.41524128,157.16,157.11,1887.89177165]
[1633128166986,53.93,157.12,157.11,1887.89177165]
[1633128167185,56.09,157.12,157.11,1887.39177165]
[1633128167588,56.09,157.12,157.11,1839.62447165]
[1633128167786,77.605,157.12,157.11,1839.62447165]
[1633128167987,77.605,157.12,157.11,1539.12946516]
[1633128168206,139.435,157.12,157.11,1472.72206516]
[1633128168389,186.83687103,157.12,157.11,1472.72206516]
[1633128168592,186.83687103,157.12,157.11,1424.92796516]
[1633128168986,95.78112325,157.12,157.11,1424.92796516]
[1633128169186,74.24524325,157.12,157.11,1424.92796516]
[1633128169587,74.24524325,157.12,157.11,1377.15136516]
[1633128170487,136.07524325,157.12,157.11,1377.15136516]
[1633128170686,136.07524325,157.12,157.11,1329.36456516]
[1633128171490,74.24524325,157.12,157.11,1329.36456516]
[1633128171690,74.24524325,157.12,157.11,1281.58026516]
[1633128172691,74.24524325,157.12,157.11,1233.80916516]
[1633128173493,56.11088,157.12,157.11,1233.80916516]
[1633128173692,56.09,157.12,157.11,1186.03416516]
[1633128174709,56.09,157.12,157.11,1138.26206516]
[1633128175710,56.09,157.12,157.11,1090.47656516]
[1633128176509,117.92,157.12,157.11,1088.93110221]
[1633128176709,117.92,157.12,157.11,1041.14470221]
[1633128177110,56.09,157.12,157.11,1041.14470221]
[1633128177709,56.09,157.12,157.11,993.36680221]
[1633128178709,74.48357659,157.12,157.11,945.58300221]
[1633128179812,74.48357659,157.12,157.11,897.79130221]
[1633128180815,74.48357659,157.12,157.11,796.07270221]
[1633128181212,136.31357659,157.12,157.11,796.07270221]
[1633128181812,74.48357659,157.12,157.11,748.28000221]
[1633128182211,74.48357659,157.12,157.11,747.78000221]
[1633128182813,74.48357659,157.12,157.11,700.00270221]
[1633128183212,56.09,157.12,157.11,700.00270221]
[1633128184212,56.09,157.12,157.11,652.22770221]
[1633128184614,55.59,157.12,157.11,652.22770221]
[1633128185214,55.59,157.12,157.11,604.45290221]
[1633128185614,55.59,157.12,157.11,550.52290221]
[1633128185816,73.19102884,157.12,157.11,550.52290221]
[1633128186214,73.19102884,157.12,157.11,502.73780221]
[1633128187216,73.19102884,157.12,157.11,454.96380221]
[1633128187617,73.19102884,157.12,157.11,479.5976475]
[1633128187817,73.19102884,157.12,157.11,454.96380221]
[1633128189817,103.40037388,157.12,157.11,407.19010221]
[1633128190818,103.40037388,157.12,157.11,359.41540221]
[1633128191619,73.19102884,157.12,157.11,359.41540221]
[1633128194821,56.09,157.12,157.11,359.41540221]
[1633128195823,392.15052803,157.15,157.11,359.41540221]
[1633128196020,2.16,157.14,157.11,359.41540221]
[1633128196625,0.0001,157.14,157.11,359.41540221]
[1633128197422,16.62602884,157.18,157.12,23.72705044]
[1633128197622,15.9153,157.22,157.15,25.47009518]
[1633128197823,20.59980846,157.31,157.15,25.47009518]
[1633128197824,15.18114384,157.27,157.16,0.02088]
[1633128198023,3.15206253,157.3,157.16,0.02088]
[1633128198423,66.89,157.23,157.16,0.02088]
[1633128198623,66.89,157.25,157.16,0.02088]
[1633128200425,2.68,157.24,157.16,0.02088]
[1633128201425,2.68,157.24,157.17,0.02088]
[1633128202227,405.59335922,157.33,157.16,0.02088]
[1633128202425,54.09,157.31,157.16,0.02088]
[1633128202629,2.16,157.3,157.16,0.02088]
[1633128203426,0.0001,157.3,157.17,105.0]
[1633128203626,0.0001,157.3,157.18,25.39181668]
[1633128203825,0.0001,157.3,157.19,0.02088]
[1633128204228,0.0001,157.3,157.18,0.02088]
[1633128207227,0.0001,157.3,157.15,0.02088]
[1633128207627,0.0001,157.3,157.11,359.41540221]
[1633128207628,0.0001,157.3,157.12,0.02088]
[1633128208230,0.0001,157.3,157.12,28.06352182]
[1633128208429,0.0001,157.3,157.13,0.02088]
[1633128208832,0.0001,157.3,157.12,0.02088]
[1633128210837,0.0001,157.3,157.11,381.3243527]
[1633128211639,0.0001,157.3,157.11,404.63823343]
[1633128211837,0.0001,157.3,157.12,0.02088]
[1633128212039,0.0001,157.3,157.13,0.02088]
[1633128214241,0.0001,157.3,157.18,0.02088]
[1633128214442,0.0001,157.3,157.18,19.23688]
[1633128214645,0.0001,157.3,157.19,0.02088]
[1633128215242,2.16,157.33,157.19,0.02088]
[1633128215842,2.16,157.33,157.19,61.85088]
[1633128216043,2.16,157.33,157.2,27.59808415]
[1633128216243,54.09,157.45,157.21,0.02088]
[1633128216443,2.16,157.44,157.21,2.18088]
[1633128216642,2.16,157.44,157.24,0.02088]
[1633128216842,2.16,157.44,157.25,29.47725753]
[1633128217043,2.16,157.44,157.26,0.02088]
[1633128217645,18.0513,157.44,157.26,0.02088]
[1633128218845,18.0513,157.44,157.25,29.47725753]
[1633128219046,18.07218,157.44,157.25,29.47725753]
[1633128223447,2.18088,157.44,157.25,54.23486048]
[1633128224049,2.18088,157.44,157.25,72.07586048]
[1633128224249,2.16,157.44,157.25,72.09674048]
[1633128224448,2.16,157.44,157.26,2.16]
[1633128224648,2.16,157.44,157.27,0.02088]
[1633128224849,2.16,157.44,157.27,26.12982517]
[1633128225051,2.16,157.44,157.28,52.55808351]
[1633128225449,2.16,157.44,157.29,26.12982517]
[1633128226351,2.16,157.44,157.29,87.95982517]
[1633128227151,2.16,157.44,157.29,26.12982517]
[1633128227553,0.02088,157.5,157.3,63.99]
[1633128227753,2.16,157.49,157.31,23.41566074]
[1633128227953,2.16,157.48,157.34,0.02088]
[1633128228152,2.16,157.5,157.35,2.16]
[1633128228353,2.16,157.5,157.36,23.199622]
[1633128228553,2.16,157.5,157.37,0.02088]
[1633128228758,2.16,157.5,157.36,52.63078939]
[1633128229353,2.16,157.53,157.37,2.16]
[1633128229754,2.16,157.53,157.38,29.45204739]
[1633128229954,2.16,157.53,157.39,25.44483121]
[1633128230460,2.16,157.53,157.39,54.8968786]
[1633128230657,2.16,157.53,157.39,54.9177586]
[1633128231056,2.16,157.53,157.39,25.44483121]
[1633128232057,2.16,157.53,157.39,25.46571121]
[1633128232458,2.16,157.56,157.4,2.18088]
[1633128232659,2.16,157.56,157.41,0.02088]
[1633128232861,2.16,157.6,157.43,22.30394769]
[1633128233058,2.16,157.6,157.44,2.18088]
[1633128233260,2.16,157.6,157.45,0.02088]
[1633128233459,79.7058,157.63,157.46,22.29236645]
[1633128233460,76.8658,157.63,157.46,22.29236645]
[1633128233659,2.16,157.62,157.45,2.16]
[1633128233858,2.16,157.62,157.42,2.18088]
[1633128234058,2.18088,157.62,157.42,2.16]
[1633128234659,2.18088,157.62,157.43,26.07247519]
[1633128234861,2.16,157.62,157.44,2.16]
[1633128235465,2.16,157.62,157.44,31.13032517]
[1633128235859,2.16,157.62,157.44,2.16]
[1633128236059,2.16,157.62,157.43,26.07247519]
[1633128236262,0.02088,157.61,157.43,26.07247519]
[1633128236464,2.16,157.6,157.43,26.07247519]
[1633128236660,0.02088,157.59,157.43,26.07247519]
[1633128236860,2.16,157.58,157.43,26.07247519]
[1633128237060,0.02088,157.57,157.43,26.07247519]
[1633128237260,2.16,157.56,157.43,26.07247519]
[1633128237461,2.18088,157.56,157.43,26.07247519]
[1633128238661,2.18088,157.56,157.36,28.97032517]
[1633128238862,18.4602489,157.56,157.36,28.97032517]
[1633128239265,2.18088,157.56,157.37,2.16]
[1633128239463,2.16,157.56,157.37,17.433]
[1633128239663,15.878,157.58,157.39,104.0]
[1633128239861,2.16,157.57,157.46,2.49224196]
[1633128240063,2.16,157.61,157.47,25.1335641]
[1633128240263,2.16,157.64,157.47,54.12476927]
[1633128240463,2.16,157.64,157.48,79.5679]
[1633128240666,2.16,157.64,157.49,63.99]
[1633128240863,2.16,157.64,157.5,25.23672122]
[1633128241064,2.16,157.64,157.5,47.91772122]
[1633128241465,2.16,157.68,157.51,31.13032517]
[1633128241667,2.16,157.68,157.55,2.45125319]
[1633128241865,2.16,157.68,157.56,30.32011418]
[1633128243669,13.0199,157.76,157.57,33.0]
[1633128243866,2.16,157.75,157.57,33.0]
[1633128244266,2.16,157.75,157.56,30.32011418]
[1633128247071,2.16,157.75,157.57,28.97032517]
[1633128247270,2.16,157.75,157.58,61.83]
[1633128247472,2.16,157.75,157.59,28.61184372]
[1633128247672,2.16,157.75,157.6,0.02088]
[1633128247873,2.16,157.75,157.61,2.16]
[1633128248072,2.16,157.75,157.62,23.34305087]
[1633128248273,2.16,157.75,157.62,25.50305087]
[1633128248673,2.16,157.75,157.62,54.47337604]
[1633128248874,2.16,157.79,157.62,54.49425604]
[1633128249073,2.16,157.82,157.63,78.8975]
[1633128249273,2.16,157.82,157.64,2.16]
[1633128249472,2.16,157.82,157.65,24.35990741]
[1633128249672,1.16,157.82,157.66,2.16]
[1633128250572,1.16,157.82,157.65,43.21890741]
[1633128250773,0.02088,157.81,157.65,24.35990741]
[1633128250975,2.16,157.8,157.65,24.35990741]
[1633128252175,2.16,157.8,157.65,26.51990741]
[1633128252376,2.16,157.8,157.66,0.02088]
[1633128252576,2.16,157.8,157.66,18.32888]
[1633128252775,2.16,157.8,157.68,21.31006797]
[1633128252978,2.16,157.8,157.69,0.02088]
[1633128253377,2.16,157.83,157.69,0.02088]
[1633128253579,2.16,157.83,157.7,2.16]
[1633128253778,2.16,157.87,157.71,22.43573898]
[1633128253976,2.16,157.87,157.72,2.18088]
[1633128254777,2.16,157.87,157.72,2.16]
[1633128255577,2.16,157.87,157.73,0.02088]
[1633128255980,2.16,157.87,157.74,2.16]
[1633128256181,2.16,157.87,157.75,26.00128452]
[1633128256380,2.16,157.87,157.75,25.98040452]
[1633128257782,119.36,157.92,157.76,2.16]
[1633128257982,119.36,157.92,157.76,26.068]
[1633128258182,2.18088,157.94,157.77,104.0]
[1633128258382,2.18088,157.97,157.78,25.44703335]
[1633128258585,2.16,158.02,157.79,81.94015098]
[1633128258785,2.16,158.02,157.8,80.51248]
[1633128258982,1.16,158.02,157.81,26.36008391]
[1633128259184,0.02088,158.08,157.82,76.18088]
[1633128259383,15.8301,158.05,157.83,11.72998529]
[1633128259584,2.16,158.04,157.84,31.63769522]
[1633128259786,2.16,158.04,157.85,0.02088]
[1633128259986,2.16,158.04,157.86,2.16]
[1633128260182,1.66,158.04,157.87,21.72589415]
[1633128260382,1.66,158.04,157.88,2.18088]
[1633128260583,1.66,158.04,157.89,0.02088]
[1633128260784,1.66,158.04,157.89,2.18088]
[1633128260984,1.66,158.04,157.9,23.41463437]
[1633128262386,1.66,158.04,157.9,40.85863437]
[1633128262586,1.66,158.04,157.91,2.16]
[1633128265391,1.66,158.04,157.9,23.41463437]
[1633128267596,1.66,158.04,157.81,2.18088]
[1633128267597,0.68088,158.04,157.81,2.18088]
[1633128267794,0.66,158.04,157.81,2.18088]
[1633128267993,0.68088,158.04,157.81,2.18088]
[1633128268193,13.71180591,158.04,157.81,2.16]
[1633128268393,0.02088,158.03,157.81,2.16]
[1633128268594,2.16,158.02,157.82,29.38987911]
[1633128268794,15.85488,158.01,157.83,2.16]
[1633128268994,2.16,158.0,157.83,30.7501452]
[1633128269196,2.16,158.0,157.84,0.02088]
[1633128269793,2.16,158.0,157.84,74.3779]
[1633128269995,2.16,158.0,157.85,23.82846894]
[1633128271798,0.16,158.0,157.85,23.82846894]
[1633128272397,0.16,158.0,157.86,0.02088]
[1633128274198,0.16,158.0,157.85,23.34934894]
[1633128274597,0.16,158.0,157.8,0.02088]
[1633128274797,26.30707168,158.0,157.77,2.16]
[1633128275200,15.8385,157.97,157.76,0.02088]
[1633128275400,2.16,157.96,157.76,0.02088]
[1633128275601,2.16,157.96,157.79,24.62878837]
[1633128275802,2.16,157.96,157.79,26.78878837]
[1633128276502,2.16,157.96,157.75,72.8713]
[1633128276704,2.18088,157.96,157.75,72.8713]
[1633128276908,0.02088,157.95,157.75,72.8713]
[1633128277105,2.16,157.94,157.75,72.8713]
[1633128277306,0.02088,157.93,157.75,72.8713]
[1633128277509,2.16,157.92,157.75,72.8713]
[1633128277710,0.02088,157.91,157.73,78.1842]
[1633128277907,15.8478,157.87,157.67,0.02088]
[1633128278107,2.16,157.86,157.66,0.02088]
[1633128278307,0.02088,157.85,157.63,2.89880261]
[1633128278508,2.16,157.84,157.64,28.61005607]
[1633128278708,0.02088,157.83,157.64,28.61005607]
[1633128278910,2.16,157.82,157.64,28.61005607]
[1633128279725,18.0132,157.82,157.64,28.61005607]
[1633128281126,0.02088,157.81,157.64,28.61005607]
[1633128281324,15.8599,157.75,157.64,28.61005607]
[1633128281525,2.16,157.74,157.64,28.61005607]
[1633128283326,2.16,157.74,157.6,77.4932]
[1633128283526,2.16,157.74,157.59,538.33202803]
[1633128284131,2.16,157.74,157.59,429.34552803]
[1633128284733,2.16,157.74,157.57,29.1624604]
[1633128285732,15.8651,157.7,157.57,29.1624604]
[1633128285931,2.16,157.69,157.57,29.1624604]
[1633128288134,2.16,157.69,157.54,74.8173]
[1633128288333,2.16,157.69,157.45,2.16]